[Event "Baku Open 2024"]
[Site "Baku"]
[Date "2024.07.01"]
[Round "3.43"]
[White "Kaldarova, Ayaulym"]
[Black "Avinash Ramesh"]
[Result "1-0"]
[ECO "D02"]
[WhiteElo "2100"]
[BlackElo "2252"]
[Annotator "NA RC"]
[PlyCount "111"]
[EventDate "2024.06.29"]
[EventType "swiss"]
[EventCountry "AZE"]
[SourceTitle "playchess.com"]
[Source "ChessBase"]
[SourceQuality "1"]
[TimeControl "5400+30"]

1. Nf3 {[%emt 0:00:11]} d5 {[%emt 0:03:51]} 2. g3 {[%emt 0:00:21]} Nd7 {[%emt 0:00:05]} 3. d4 {[%emt 0:00:22]} Nb6 {[%emt 0:00:04]} 4. Nc3 {[%emt 0:01:16]} Bf5 {[%emt 0:00:06]} 5. a4 {[%emt 0:00:18]} a5 {[%emt 0:00:06]} 6. Nh4 {[%emt 0:00:24]} Bg4 {[%emt 0:00:05]} 7. h3 {[%emt 0:00:27]} Bh5 {[%emt 0:00:04]} 8. Ng2 {[%emt 0:00:13]} e6 {[%emt 0:00:13]} 9. Nf4 {[%emt 0:00:12]} Bg6 {[%emt 0:00:05]} 10. Nxg6 {[%emt 0:02:29]} hxg6 {[%emt 0:00:05]} 11. Bg2 {[%emt 0:01:02]} f5 {[%emt 0:00:05]} 12. Qd3 {[%emt 0:04:39]} c6 {[%emt 0:00:17]} 13. O-O {[%emt 0:02:19]} Nf6 {[%emt 0:00:05]} 14. b3 {[%emt 0:01:54]} Be7 {[%emt 0:02:29]} 15. Ba3 {[%emt 0:15:05]} Bxa3 {[%emt 0:00:38]} 16. Rxa3 {[%emt 0:00:07]} Qe7 {[%emt 0:00:40]} 17. Raa1 {[%emt 0:00:25]} g5 {[%emt 0:00:07]} 18. Qe3 {[%emt 0:05:01]} g4 {[%emt 0:00:59]} 19. h4 {[%emt 0:00:26]} Nc8 {[%emt 0:00:43]} 20. Rfc1 {[%emt 0:04:24]} Nd6 {[%emt 0:02:12]} 21. Nd1 {[%emt 0:01:48]} Nfe4 {[%emt 0:07:25]} 22. c4 {[%emt 0:04:07]} g5 {[%emt 0:02:51]} 23. hxg5 {[%emt 0:01:15]} Qh7 {[%emt 0:20:49]} 24. cxd5 {[%emt 0:01:38]} Ke7 {[%emt 0:02:35]} 25. Nc3 {[%emt 0:05:15]} Qh2+ {[%emt 0:01:29]} 26. Kf1 {[%emt 0:00:08]} Rh3 {[%emt 0:08:23]} 27. Nxe4 {[%emt 0:01:58]} fxe4 {[%emt 0:02:58]} 28. Bxe4 {[%emt 0:17:29]} Nxe4 {[%emt 0:14:36]} 29. Qxe4 {[%emt 0:00:07]} cxd5 {[%emt 0:00:02]} 30. Qg2 {[%emt 0:01:29]} Rah8 {[%emt 0:03:15]} 31. Qxh2 {[%emt 0:07:53]} Rxh2 {[%emt 0:00:40]} 32. Ke1 {[%emt 0:00:10]} Rf8 {[%emt 0:01:24]} 33. Rc7+ {[%emt 0:00:43]} Kd6 {[%emt 0:01:27]} 34. Rac1 {[%emt 0:00:16]} Rfxf2 {[%emt 0:04:35]} 35. R1c2 {[%emt 0:00:32]} e5 {[%emt 0:06:09]} 36. dxe5+ {[%emt 0:03:38]} Kxe5 {[%emt 0:01:48]} 37. g6 {[%emt 0:00:47]} Rf8 {[%emt 0:00:15]} 38. Rxb7 {[%emt 0:00:28]} Rh1+ {[%emt 0:03:50]} 39. Kd2 {[%emt 0:00:07]} Rh3 {[%emt 0:02:42]} 40. g7 {[%emt 0:02:41]} Rg8 {[%emt 0:00:04]} 41. Rf7 {[%emt 0:00:28]} Rxg3 {[%emt 0:02:22]} 42. Rc8 {[%emt 0:01:08]} Rxc8 {[%emt 0:02:19]} 43. Rf8 {[%emt 0:00:06]} Rxf8 {[%emt 0:01:47]} 44. gxf8=Q {[%emt 0:00:08]} Rxb3 {[%emt 0:00:02]} 45. Qg7+ {[%emt 0:00:20]} Kd6 {[%emt 0:00:21]} 46. Qxg4 {[%emt 0:00:23]} Rb4 {[%emt 0:00:11]} 47. Qg6+ {[%emt 0:00:47]} Kc5 {[%emt 0:01:30]} 48. Qc2+ {[%emt 0:00:13]} Kd6 {[%emt 0:00:57]} 49. Kd3 {[%emt 0:00:41]} Re4 {[%emt 0:01:23]} 50. e3 {[%emt 0:01:30]} Rb4 {[%emt 0:00:07]} 51. Qh2+ {[%emt 0:00:09]} Kc6 {[%emt 0:00:13]} 52. Qh6+ {[%emt 0:00:21]} Kc5 {[%emt 0:00:32]} 53. Qf8+ {[%emt 0:00:25]} Kb6 {[%emt 0:00:20]} 54. Qd6+ {[%emt 0:00:11]} Ka7 {[%emt 0:00:08]} 55. Qxd5 {[%emt 0:00:26]} Rxa4 {[%emt 0:00:13]} 56. Qd7+ {[%emt 0:00:06]} 1-0

[Event "Baku Open 2024"]
[Site "Baku"]
[Date "2024.07.01"]
[Round "3.44"]
[White "Huseynova, Lala"]
[Black "Bayramov, Zaur"]
[Result "0-1"]
[ECO "B41"]
[WhiteElo "2036"]
[BlackElo "2249"]
[Annotator "TA"]
[PlyCount "48"]
[EventDate "2024.06.29"]
[EventType "swiss"]
[EventCountry "AZE"]
[SourceTitle "playchess.com"]
[Source "ChessBase"]
[SourceQuality "1"]
[TimeControl "5400+30"]

{[%evp 16,48,-3,-24,3,0,-10,-11,-9,-4,0,-24,-16,-136,-133,-118,-42,-174,-197,-193,-185,-322,-291,-314,-279,-290,-306,-520,-500,-688,-680,-1029,-1011,-963,-948]} 1. e4 {[%emt 0:00:02]} c5 {[%emt 0:00:26]} 2. Nf3 {[%emt 0:00:05]} e6 {[%emt 0:00:11]} 3. d4 {[%emt 0:00:05]} cxd4 {[%emt 0:00:05]} 4. Nxd4 {[%emt 0:00:03]} a6 {[%emt 0:00:07]} 5. Bd3 {[%emt 0:00:03]} Nc6 {[%emt 0:02:00]} 6. Nxc6 {[%emt 0:06:37]} dxc6 {[%emt 0:02:43]} 7. c4 {[%emt 0:01:22]} e5 {[%emt 0:00:24]} 8. Nc3 {[%emt 0:00:35]} Nf6 {[%emt 0:00:24]} 9. O-O {[%emt 0:00:32]} h6 {[%emt 0:01:17]} 10. b3 {[%emt 0:03:18]} Bc5 {[%emt 0:01:02]} 11. Bb2 {[%emt 0:00:19]} Bd4 {[%emt 0:02:57] The position is equal.} 12. Qc2 {[%emt 0:05:50]} O-O {[%emt 0:02:11]} 13. Ba3 {[%emt 0:01:49]} Re8 {[%emt 0:00:39]} 14. b4 {[%emt 0:05:48]} (14. Rab1 $11) 14... a5 {[%emt 0:07:43] Black has more active pieces.} 15. b5 {[%emt 0:01:26] [#]} cxb5 {[%emt 0:01:19]} (15... Nh5 $1 $17 {[%cal Rh5f4] And now ...Nf4 would win.} 16. Rad1 Bxc3 17. Qxc3 cxb5 18. cxb5 Nf4) 16. cxb5 {[%emt 0:01:06] This move loses the game for White.} (16. Nxb5 $15 Bxa1 17. Rxa1) 16... Be6 $19 {[%emt 0:01:34]} 17. Bb2 {[%emt 0:09:27] [#]} a4 $1 {[%emt 0:01:32][%mdl 512] aiming for ...a3.} 18. a3 {[%emt 0:06:03]} (18. Nxa4 $2 {too greedy.} Rxa4 19. Qxa4 Bxb2 $19) (18. Nd5 $142 Nxd5 19. exd5) (18. Rad1 a3) 18... Rc8 {[%emt 0:03:01] White must now prevent ...Nh5.} (18... Bb3 $2 19. Qe2 $19) 19. Rac1 {[%emt 0:00:55]} Qa5 {[%emt 0:01:53]} 20. Qd2 {[%emt 0:15:21]} b6 {[%emt 0:01:31] ...Rc5 is the strong threat.} 21. Kh1 $2 {[%emt 0:03:37]} (21. Qe1) 21... Rc5 {[%emt 0:02:12] Strongly threatening ...Rec8. Black is clearly winning.} 22. Rc2 {[%emt 0:05:15]} Bb3 {[%emt 0:01:46]} 23. Rfc1 {[%emt 0:00:30]} Bxc2 {[%emt 0:00:18]} 24. Rxc2 {[%emt 0:00:04]} Rec8 {[%emt 0:00:10] Weighted Error Value: White=0.84/Black=0.07 (flawless) .  Mistake:       	White=4     	Black=1      Inaccurate:     	White=2     	---        OK:         	White=6     	Black=8      Best:        	---       	Black=1} 0-1

[Event "Baku Open 2024"]
[Site "Baku"]
[Date "2024.07.02"]
[Round "4.1"]
[White "Movahed, Sina"]
[Black "Puranik, Abhimanyu"]
[Result "1-0"]
[ECO "B32"]
[WhiteElo "2482"]
[BlackElo "2632"]
[Annotator "TA"]
[PlyCount "127"]
[EventDate "2024.06.29"]
[EventType "swiss"]
[EventCountry "AZE"]
[SourceTitle "playchess.com"]
[Source "ChessBase"]
[SourceQuality "1"]
[TimeControl "5400+30"]

{[%evp 69,127,228,322,277,312,118,128,54,28,0,0,0,104,0,0,0,0,0,125,0,25,0,206,205,414,410,404,437,414,432,399,330,452,409,441,401,447,425,393,253,287,281,269,217,298,274,339,335,319,353,860,724,639,689,4134,4134,4134,4133,2079,1898]} 1. e4 {[%emt 0:00:33]} c5 {[%emt 0:02:53]} 2. Nf3 {[%emt 0:00:06]} Nc6 {[%emt 0:00:03]} 3. d4 {[%emt 0:00:08]} cxd4 {[%emt 0:00:04]} 4. Nxd4 {[%emt 0:00:05]} e5 {[%emt 0:00:43]} 5. Nb5 {[%emt 0:00:08]} d6 {[%emt 0:00:15]} 6. c4 {[%emt 0:00:10]} g6 {[%emt 0:00:23]} 7. N5c3 {[%emt 0:01:03]} Be6 {[%emt 0:01:30]} 8. Be3 {[%emt 0:00:53]} Bh6 {[%emt 0:04:48]} 9. Bxh6 {[%emt 0:07:17]} Nxh6 {[%emt 0:00:10]} 10. Na3 {[%emt 0:02:24]} O-O {[%emt 0:04:11]} 11. Qd2 {[%emt 0:03:58]} Kg7 {[%emt 0:03:52]} 12. O-O-O {[%emt 0:02:18]} Qf6 {[%emt 0:11:41]} 13. Nc2 {[%emt 0:02:34]} a6 {[%emt 0:02:39]} 14. Nd5 {[%emt 0:04:33]} Bxd5 {[%emt 0:08:59]} 15. cxd5 {[%emt 0:01:04]} Nb8 {[%emt 0:00:06]} 16. Kb1 {[%emt 0:06:44]} Nd7 {[%emt 0:00:04]} 17. f3 {[%emt 0:00:24]} Rac8 {[%emt 0:06:36]} 18. Be2 {[%emt 0:05:05]} Rc7 {[%emt 0:04:59]} 19. h4 {[%emt 0:01:26]} Nc5 {[%emt 0:11:40]} 20. Ne3 {[%emt 0:06:16]} b5 {[%emt 0:01:26]} 21. g4 {[%emt 0:04:23]} Ng8 {[%emt 0:03:17]} 22. Rdg1 {[%emt 0:05:46]} Qf4 {[%emt 0:05:17]} 23. g5 {[%emt 0:09:25]} h5 {[%emt 0:00:05]} 24. gxh6+ {[%emt 0:01:16]} Kh7 {[%emt 0:00:08]} 25. Rg4 {[%emt 0:01:59]} Qf6 {[%emt 0:00:11]} 26. h5 {[%emt 0:01:07]} Rfc8 {[%emt 0:03:03]} 27. hxg6+ {[%emt 0:08:00]} fxg6 {[%emt 0:00:18]} 28. Rc1 {[%emt 0:04:06]} Ne7 {[%emt 0:01:15]} 29. Rc2 {[%emt 0:00:13]} Qf8 {[%emt 0:03:13]} 30. Rg1 {[%emt 0:02:19]} Nd7 {[%emt 0:01:19]} 31. Rxc7 {[%emt 0:01:50]} Rxc7 {[%emt 0:00:02]} 32. Ng4 {[%emt 0:00:20]} Ng8 {[%emt 0:02:52]} 33. Nf2 {[%emt 0:02:29]} Ngf6 {[%emt 0:04:46]} 34. Qa5 {[%emt 0:05:14]} Qb8 {[%emt 0:05:15]} 35. Nh3 {[%emt 0:00:40]} (35. Qxa6 Ra7 36. Qc6 (36. Qxb5 Rb7 $11) 36... Rc7 37. Qa6 $14 (37. Qxb5 Rb7 $15) (37. Qxd6 $2 Rc1+ 38. Rxc1 $19)) 35... Nf8 {[%emt 0:03:13]} (35... Qa7 $142 36. Ng5+ Kg8) 36. Ng5+ {[%emt 0:03:22]} (36. Qxa6 Ra7 37. Ng5+ (37. Qxb5 Rb7 $16) 37... Kg8 38. Qxb5 Rb7 $16) 36... Kxh6 {[%emt 0:00:34]} 37. Rh1+ $2 {[%emt 0:02:05]} (37. Qxa6 Kg7 $18) (37. f4 $18 {and the rest is easy.}) 37... Nh5 $16 {[%emt 0:02:27]} 38. f4 {[%emt 0:02:14]} (38. Qd2 $16 Kg7 39. f4 Nxf4 40. Qe1) 38... exf4 $14 {[%emt 0:00:04]} 39. Bxh5 {[%emt 0:01:17]} (39. Ne6 $5 Nxe6 40. dxe6 $11) 39... gxh5 {[%emt 0:00:52]} (39... Kxg5 40. Qe1 Kf6 41. Qh4+ Kf7 42. Qxf4+ Kg8 43. Bg4 $16 (43. Qxd6 $2 Rc1+ 44. Rxc1 Qxd6 $19)) 40. Nf3 {[%emt 0:00:22]} Rf7 {[%emt 0:02:26]} (40... Rc4 $1 $11 41. Qd2 Rxe4) 41. Qc3 {[%emt 0:02:23]} (41. Qxa6 $16 {Nh4 is the strong threat.} Ng6 42. Nd4) 41... Ng6 $11 {[%emt 0:01:03]} 42. Rg1 {[%emt 0:01:11]} Qa7 {[%emt 0:01:20]} 43. Nd4 {[%emt 0:01:16]} b4 {[%emt 0:00:44]} (43... Nh4 $11) 44. Qd2 {[%emt 0:00:24]} (44. Qxb4 $16 Rf6 45. Qd2) 44... Ne5 {[%emt 0:00:18]} 45. Rh1 {[%emt 0:00:43]} Qd7 $2 {[%emt 0:01:18]} (45... Ng4 $11 {and Black stays safe.}) 46. Ne6 $1 $18 {[%emt 0:00:32]} Ng6 $2 {[%emt 0:00:25]} (46... Qe7 47. Nxf4 h4) 47. Qe2 {[%emt 0:00:57]} (47. Qxb4 Qe7 $11) 47... h4 {[%emt 0:00:09]} 48. Qg4 {[%emt 0:00:25]} (48. Qxa6 Qa7 49. Qxd6 b3 50. axb3 f3 $11) 48... Qe7 {[%emt 0:00:07]} 49. Rg1 {[%emt 0:00:06]} Qf6 {[%emt 0:00:33] [#]} 50. Nd4 $1 {[%emt 0:00:10]} Ne7 {[%emt 0:01:20]} (50... Ne5 51. Qg8 Kh5 52. Nf5) 51. Rh1 $1 {[%emt 0:00:10]} Qg5 {[%emt 0:00:13]} 52. Qe6+ {[%emt 0:01:14]} (52. Qxh4+ Qxh4 53. Rxh4+ Kg6 $14) (52. Rxh4+ Kg6 $18) 52... Kg7 {[%emt 0:00:30]} 53. Qxd6 {[%emt 0:00:17]} Qf6 {[%emt 0:00:43]} 54. Ne6+ {[%emt 0:00:28]} ({Resist} 54. Qxb4 f3 55. d6 (55. Ne6+ Kg6 $16) 55... f2) 54... Kh6 {[%emt 0:00:24]} 55. Qxb4 {[%emt 0:02:08]} ({Less strong is} 55. Qxa6 f3 $14) 55... Ng6 {[%emt 0:00:10]} 56. Qd2 {[%emt 0:00:00]} Qe5 {[%emt 0:00:07]} 57. Re1 {[%emt 0:00:00]} ({Not} 57. Nc5 Kh7 $16) 57... Kh7 {[%emt 0:00:28]} 58. Ka1 {[%emt 0:00:00]} Rf6 {[%emt 0:00:58]} 59. Rg1 {[%emt 0:00:44]} f3 $2 {[%emt 0:00:22]} (59... Rxe6 60. dxe6 Qxe6) 60. Qf2 {[%emt 0:00:23]} Rxe6 {[%emt 0:01:06]} 61. dxe6 {[%emt 0:00:05]} Qxe4 {[%emt 0:00:06]} 62. Re1 {[%emt 0:00:05]} Qb4 {[%emt 0:00:14]} 63. e7 {[%emt 0:00:15]} Nxe7 {[%emt 0:00:06]} 64. a3 {[%emt 0:00:02]} 1-0

[Event "Baku Open 2024"]
[Site "Baku"]
[Date "2024.07.02"]
[Round "4.2"]
[White "Suleymanli, Aydin"]
[Black "Ibrahimli, Murad"]
[Result "1/2-1/2"]
[ECO "C84"]
[WhiteElo "2626"]
[BlackElo "2400"]
[Annotator "TA"]
[PlyCount "121"]
[EventDate "2024.06.29"]
[EventType "swiss"]
[EventCountry "AZE"]
[SourceTitle "playchess.com"]
[Source "ChessBase"]
[SourceQuality "1"]
[TimeControl "5400+30"]

{[%evp 47,121,-24,0,-22,-31,-18,-15,-20,-21,-23,0,-27,-28,-22,-19,-37,-8,-15,0,0,0,0,0,0,0,0,0,0,0,0,0,0,74,0,79,0,0,0,0,0,0,0,0,0,0,0,0,0,0,0,0,0,0,0,0,0,0,0,0,0,0,0,0,0,0,-4,0,0,0,0,0,0,0,0,0,0]} 1. e4 {[%emt 0:00:02]} e5 {[%emt 0:00:47]} 2. Nf3 {[%emt 0:00:12]} Nc6 {[%emt 0:00:06]} 3. Bb5 {[%emt 0:00:04]} a6 {[%emt 0:00:29]} 4. Ba4 {[%emt 0:00:05]} Nf6 {[%emt 0:00:07]} 5. O-O {[%emt 0:00:03]} Be7 {[%emt 0:00:48]} 6. d3 {[%emt 0:00:05]} b5 {[%emt 0:00:09]} 7. Bb3 {[%emt 0:00:05]} d6 {[%emt 0:00:06]} 8. a3 {[%emt 0:00:07]} O-O {[%emt 0:01:33]} 9. Nc3 {[%emt 0:00:02]} Bg4 {[%emt 0:02:58]} 10. Be3 {[%emt 0:00:07]} Nd4 {[%emt 0:00:19] C84: Closed Ruy Lopez: Unusual White 6th moves.} 11. Bxd4 {[%emt 0:00:05]} exd4 {[%emt 0:00:06]} 12. Nd5 {[%emt 0:00:03]} Nd7 {[%emt 0:00:05] 12...Nd7 was played by the boomers.} 13. h3 {[%emt 0:00:34]} Bxf3 {[%emt 0:00:12]} 14. Qxf3 {[%emt 0:00:06]} Bg5 {[%emt 0:01:53]} 15. Nb4 {[%emt 0:00:06]} Ne5 {[%emt 0:07:10]} 16. Qe2 {[%emt 0:00:06]} a5 {[%emt 0:02:08]} 17. Bd5 {[%emt 0:00:04]} Rb8 {[%emt 0:03:26]} 18. Nc6 {[%emt 0:00:15]} Nxc6 {[%emt 0:00:13]} 19. Bxc6 {[%emt 0:00:02]} Rb6 {[%emt 0:00:24]} 20. Bd5 {[%emt 0:00:05]} c6 {[%emt 0:00:04]} 21. Ba2 {[%emt 0:00:45]} a4 {[%emt 0:05:48]} 22. f4 {[%emt 0:02:44]} Bf6 $146 {[%emt 0:01:17]} ({Predecessor:} 22... Bh4 23. Qd2 d5 24. Kh2 dxe4 25. dxe4 c5 26. Bd5 Kh8 27. g3 Be7 28. Qg2 Rd6 {0-1 De Boer,E (2310)-De Vreugt,D (2409) Groningen University m 2017 (1)}) 23. e5 {[%emt 0:06:49]} Be7 {[%emt 0:03:57]} 24. b4 {[%emt 0:13:26]} d5 {[%emt 0:25:39]} 25. Qf2 {[%emt 0:31:33]} c5 {[%emt 0:04:18]} 26. bxc5 {[%emt 0:00:09]} Bxc5 {[%emt 0:00:04]} 27. Qf3 {[%emt 0:02:54]} Bxa3 {[%emt 0:01:12]} 28. Bxd5 {[%emt 0:00:09]} Bb4 {[%emt 0:03:12]} 29. Qe4 {[%emt 0:06:19]} Bc3 {[%emt 0:00:14]} 30. Rab1 {[%emt 0:00:06]} Qh4 {[%emt 0:13:28]} 31. Kh2 {[%emt 0:03:24]} b4 {[%emt 0:04:41]} 32. g3 {[%emt 0:06:11]} Qe7 {[%emt 0:01:45]} 33. f5 {[%emt 0:00:08]} Kh8 {[%emt 0:05:38]} 34. f6 {[%emt 0:03:02]} gxf6 {[%emt 0:00:18]} 35. Qh4 {[%emt 0:00:03]} Qxe5 {[%emt 0:00:31]} 36. Be4 {[%emt 0:01:14]} f5 $1 {[%emt 0:00:03]} 37. Rxf5 {[%emt 0:01:10]} Qg7 $1 {[%emt 0:00:07]} 38. Rbf1 {[%emt 0:03:38]} Rh6 {[%emt 0:08:03]} 39. Qf4 {[%emt 0:01:58]} f6 {[%emt 0:01:04] [#]} (39... Re6 $11) 40. Bd5 {[%emt 0:04:32]} (40. Rb5 $1 $16 {[%cal Rb5b7]} Rc8 41. Bd5) 40... a3 {[%emt 0:01:22] [#]} (40... Rg6 $11 {keeps the balance.}) 41. Qd6 {[%emt 0:02:14]} (41. g4 $1 $16 {[%cal Rg4g5] Black must now prevent g5.} Re8 42. g5) 41... Rg6 {[%emt 0:01:55]} 42. g4 {[%emt 0:08:44]} Bd2 {[%emt 0:02:16]} 43. Bb3 {[%emt 0:00:04]} Re8 {[%emt 0:01:16]} 44. Rxf6 {[%emt 0:04:22]} Rxf6 {[%emt 0:00:13]} 45. Rxf6 {[%emt 0:00:06]} Qe7 {[%emt 0:00:54]} 46. Qxd4 {[%emt 0:00:16]} Qg7 {[%emt 0:00:24]} 47. Qf2 {[%emt 0:03:09]} Qc7+ {[%emt 0:00:18]} 48. Kg2 {[%emt 0:00:29]} Qb7+ {[%emt 0:00:04]} 49. Kh2 {[%emt 0:01:49]} Qc7+ {[%emt 0:00:05]} 50. Kg2 {[%emt 0:00:02]} Qb7+ {[%emt 0:00:03]} 51. Qf3 {[%emt 0:00:47]} Re2+ {[%emt 0:00:21]} 52. Kf1 {[%emt 0:00:28]} Re1+ {[%emt 0:00:02]} 53. Kf2 {[%emt 0:00:41]} Qxf3+ $1 {[%emt 0:01:48]} 54. Rxf3 {[%emt 0:00:04]} Re8 {[%emt 0:00:14]} 55. d4 {[%emt 0:01:02]} Ra8 {[%emt 0:01:39]} 56. Rd3 {[%emt 0:00:23]} a2 {[%emt 0:00:28]} (56... Bc3 $5 57. Ba2 $8 Kg7 $11) 57. Bxa2 {[%emt 0:00:11]} (57. Rxd2 $2 {loses.} Rf8+ (57... a1=B $2 {is the wrong capture.} 58. d5 $18) (57... a1=Q $2 58. Kg2 $19) 58. Kg2 a1=Q $19 (58... a1=B $2 {too greedy.} 59. d5 $18)) 57... Rxa2 {[%emt 0:00:04]} 58. Rxd2 {[%emt 0:00:03]} b3 {[%emt 0:00:04]} 59. Rd1 $1 {[%emt 0:00:05]} Rxc2+ {[%emt 0:00:58]} 60. Ke3 {[%emt 0:00:22]} Kg7 {[%emt 0:00:13]} (60... b2 $5 61. Rb1 $8 Kg8 $11) 61. Ke4 {[%emt 0:03:07]} 1/2-1/2

[Event "Baku Open 2024"]
[Site "Baku"]
[Date "2024.07.02"]
[Round "4.3"]
[White "Atakishiyev, Elmar"]
[Black "Mamedov, Rauf"]
[Result "1/2-1/2"]
[ECO "E69"]
[WhiteElo "2356"]
[BlackElo "2651"]
[Annotator "TA"]
[PlyCount "49"]
[EventDate "2024.06.29"]
[EventType "swiss"]
[EventCountry "AZE"]
[SourceTitle "playchess.com"]
[Source "ChessBase"]
[SourceQuality "1"]
[TimeControl "5400+30"]

{[%evp 26,49,11,4,0,0,49,53,97,92,83,84,88,79,88,41,58,20,19,19,15,24,33,0,28,28]} 1. d4 {[%emt 0:04:40]} Nf6 {[%emt 0:01:20]} 2. c4 {[%emt 0:00:06]} g6 {[%emt 0:00:05]} 3. g3 {[%emt 0:00:12]} Bg7 {[%emt 0:00:12]} 4. Bg2 {[%emt 0:00:12]} O-O {[%emt 0:00:06]} 5. Nc3 {[%emt 0:00:04]} d6 {[%emt 0:00:05]} 6. Nf3 {[%emt 0:00:06]} Nbd7 {[%emt 0:00:06]} 7. O-O {[%emt 0:00:13]} e5 {[%emt 0:00:03]} 8. e4 {[%emt 0:00:37]} exd4 {[%emt 0:00:04]} 9. Nxd4 {[%emt 0:00:03]} Nc5 {[%emt 0:00:04]} 10. Re1 {[%emt 0:00:25]} Re8 {[%emt 0:00:04]} 11. h3 {[%emt 0:01:22]} h6 {[%emt 0:00:04]} 12. Rb1 {[%emt 0:05:08]} a5 {[%emt 0:00:29]} 13. b3 {[%emt 0:01:03]} c6 {[%emt 0:00:30][%cal Bc7c6,Bc6d5][%mdl 32]} 14. Kh2 {[%emt 0:03:25]} h5 {[%emt 0:12:47]} 15. f4 {[%emt 0:12:09]} h4 {[%emt 0:32:32]} 16. g4 $14 {[%emt 0:00:51]} (16. gxh4 $2 Nh5 17. Nce2 Nxe4 $19 (17... Qxh4 $2 18. Nf3 $19)) 16... d5 {[%emt 0:02:18] White is slightly better.} 17. cxd5 {[%emt 0:18:11]} cxd5 {[%emt 0:01:32]} 18. e5 {[%emt 0:01:17]} (18. exd5 $6 Rxe1 19. Qxe1 Bxg4 $11 (19... Nxg4+ 20. hxg4 Bxd4 21. Qd2 $11)) 18... Nfe4 {[%emt 0:01:44]} 19. Nxe4 {[%emt 0:01:29]} (19. Bxe4 dxe4 (19... Nxe4 20. Qf3 $14) 20. Nxe4 Nxe4 21. Rxe4 f5) 19... Nxe4 {[%emt 0:14:12]} 20. Bb2 {[%emt 0:15:19] Dodges Nc3} (20. Nb5 $16) 20... a4 {[%emt 0:09:50]} 21. bxa4 {[%emt 0:05:26][%cal Od4b5]} Bd7 {[%emt 0:00:08]} 22. Nb5 {[%emt 0:00:18]} Bc6 {[%emt 0:01:33]} 23. g5 {[%emt 0:04:13]} Qa5 {[%emt 0:22:12][%csl LRa4,LRb5]} 24. Bd4 {[%emt 0:00:51]} Re7 {[%emt 0:00:00]} 25. Re3 {[%emt 0:02:48] Weighted Error Value: White=0.14 (very precise) /Black=0.14 (very precise) .  Mistake:       	White=1     	Black=1      Inaccurate:     	White=2     	Black=2      OK:         	White=6     	Black=4      Best:        	White=1     	---} 1/2-1/2